bitfinex/quotes_BTCUSD_20250602
["timestamp","ask_amount","ask_price","bid_price","bid_amount"]
[1748846993031,0.98484299,105260.0,105250.0,1.10249639]
[1748846993266,0.98484299,105260.0,105250.0,1.10249619]
[1748846993479,1.00074299,105260.0,105250.0,1.10249619]
[1748846993900,1.45145284,105260.0,105250.0,1.0]
[1748846994127,1.39820028,105260.0,105250.0,1.0]
[1748846994335,1.46405253,105260.0,105250.0,1.0]
[1748846994549,1.39820028,105260.0,105250.0,1.0]
[1748846997005,1.06657469,105260.0,105250.0,1.0]
[1748846997978,1.46403198,105260.0,105250.0,1.0]
[1748846998128,1.81857283,105260.0,105250.0,1.0]
[1748846999318,1.81853991,105260.0,105250.0,1.0]
[1748846999733,1.81953991,105260.0,105250.0,1.0]
[1748847000148,1.84806791,105260.0,105250.0,1.0]
[1748847002145,1.48688737,105260.0,105250.0,1.0]
[1748847002350,1.84722791,105260.0,105250.0,1.0]
[1748847003504,1.84714791,105260.0,105250.0,1.0]
[1748847004371,1.55450791,105260.0,105250.0,1.0]
[1748847004564,1.84706791,105260.0,105250.0,1.0]
[1748847005493,1.44961062,105260.0,105250.0,1.0]
[1748847006323,1.44955293,105260.0,105250.0,1.0]
[1748847006543,1.84701022,105260.0,105250.0,1.0]
[1748847007417,1.78126913,105260.0,105250.0,1.0]
[1748847009105,0.98635455,105260.0,105250.0,1.0]
[1748847009322,1.78126913,105260.0,105250.0,1.0]
[1748847009526,1.79299308,105260.0,105250.0,1.0]
[1748847010341,1.39553579,105260.0,105250.0,1.0]
[1748847010769,1.79299308,105260.0,105250.0,1.0]
[1748847013074,1.79323308,105260.0,105250.0,1.0]
[1748847013276,1.39577579,105260.0,105250.0,1.0]
[1748847014916,1.80629579,105260.0,105250.0,1.0]
[1748847017067,1.77776779,105260.0,105250.0,1.0]
[1748847017274,2.5723536,105260.0,105250.0,1.0]
[1748847019811,2.5564536,105260.0,105250.0,1.0]
[1748847020347,2.2636536,105260.0,105250.0,1.0]
[1748847020556,2.5562136,105260.0,105250.0,1.0]
[1748847025996,1.01059735,105260.0,105250.0,1.0]
[1748847026215,0.001,105260.0,105250.0,1.34538051]
[1748847026437,0.00990315,105260.0,105250.0,2.16561396]
[1748847026653,0.00990315,105260.0,105250.0,2.06074626]
[1748847026654,0.001,105260.0,105250.0,2.06074626]
[1748847026864,0.001,105260.0,105250.0,2.06078346]
[1748847026865,0.3983477,105260.0,105250.0,2.06078346]
[1748847027302,0.3973477,105260.0,105250.0,2.06078346]
[1748847027520,0.3973477,105260.0,105250.0,2.06078434]
[1748847027951,0.40684627,105270.0,105260.0,0.24968959]
[1748847028217,0.42523186,105270.0,105260.0,0.35216984]
[1748847028438,0.41634502,105270.0,105260.0,0.34554389]
[1748847028678,0.41634502,105270.0,105260.0,0.35216394]
[1748847028889,0.41634502,105270.0,105260.0,0.34554389]
[1748847029327,0.41603233,105270.0,105260.0,0.3521636]
[1748847030230,0.40653358,105270.0,105260.0,0.3521636]
[1748847030453,0.41603233,105270.0,105260.0,0.34554389]
[1748847030673,0.41603233,105270.0,105260.0,0.3521636]
[1748847030910,0.42553126,105270.0,105260.0,0.34554389]
[1748847031352,0.41603233,105270.0,105260.0,0.34554389]
[1748847031821,0.42553126,105270.0,105260.0,0.34554389]
[1748847032907,0.41603233,105270.0,105260.0,0.34554389]
[1748847033120,0.75181762,105280.0,105270.0,0.2503848]
[1748847033328,0.75181762,105280.0,105270.0,0.3462391]
[1748847033528,0.36428109,105280.0,105270.0,0.3462391]
[1748847033732,0.07460955,105280.0,105270.0,0.3462391]
[1748847033949,0.35577509,105280.0,105270.0,0.3462391]
[1748847034159,0.35577509,105280.0,105270.0,0.35573785]
[1748847034592,0.34627661,105280.0,105270.0,0.35573785]
[1748847034844,0.32727993,105280.0,105270.0,0.35573785]
[1748847035060,0.33677822,105280.0,105270.0,0.35573785]
[1748847035477,0.32727993,105280.0,105270.0,0.35573785]
[1748847035689,0.32827993,105280.0,105270.0,0.35573785]
[1748847035910,0.33777822,105280.0,105270.0,0.35573785]
[1748847037387,0.34905356,105280.0,105270.0,0.35573785]
[1748847037795,0.33777795,105280.0,105270.0,0.35573785]
[1748847038417,0.02622182,105280.0,105270.0,0.35573785]
[1748847038619,0.32803975,105280.0,105270.0,0.35573785]
[1748847039046,0.33753786,105280.0,105270.0,0.35573785]
[1748847039253,0.32803975,105280.0,105270.0,0.35573785]
[1748847039900,0.33741786,105280.0,105270.0,0.35573785]
[1748847040111,0.34691615,105280.0,105270.0,0.35573785]
[1748847040311,0.03571975,105280.0,105270.0,0.35573785]
[1748847040510,0.33737786,105280.0,105270.0,0.35573785]
[1748847040716,0.34687615,105280.0,105270.0,0.35573785]
[1748847041336,0.05471615,105280.0,105270.0,0.35573785]
[1748847041515,0.05709341,105280.0,105270.0,0.35573785]
[1748847041966,0.0686173,105280.0,105270.0,0.35573785]
[1748847042784,0.07811578,105280.0,105270.0,0.35573785]
[1748847042988,0.64612462,105280.0,105270.0,0.32724124]
[1748847043189,0.64374736,105280.0,105270.0,0.32724124]
[1748847043395,0.64374736,105280.0,105270.0,0.33674017]
[1748847044354,0.64374736,105280.0,105270.0,0.34623919]
[1748847045400,0.64306736,105280.0,105270.0,0.34623919]
[1748847045609,0.20900563,105260.0,105250.0,1.032]
[1748847045776,0.20900563,105260.0,105250.0,1.0958543]
[1748847045777,0.98816064,105260.0,105250.0,1.0958543]
[1748847046770,0.98816064,105260.0,105250.0,1.0968543]
[1748847047418,0.98816064,105260.0,105250.0,1.0958543]
[1748847047624,0.98816064,105260.0,105250.0,1.0]
[1748847047906,1.00436064,105260.0,105250.0,1.0]
[1748847048406,0.98816064,105260.0,105250.0,1.0]
[1748847049833,0.59112563,105260.0,105250.0,1.0]
[1748847050040,0.98816064,105260.0,105250.0,1.0]
[1748847058775,0.69616064,105260.0,105250.0,1.0]
[1748847058940,0.98840064,105260.0,105250.0,1.0]
[1748847060432,0.98840064,105260.0,105250.0,1.0155]
[1748847061196,0.69616064,105260.0,105250.0,1.0155]
[1748847061426,0.98828064,105260.0,105250.0,1.0155]
[1748847065565,0.59124563,105260.0,105250.0,1.0155]
[1748847065753,0.98828064,105260.0,105250.0,1.0155]
[1748847067425,1.38572357,105260.0,105250.0,1.0155]
[1748847067635,0.59124563,105260.0,105250.0,1.0155]
[1748847067839,1.38572357,105260.0,105250.0,1.0155]
[1748847069558,1.38520357,105260.0,105250.0,1.0155]
[1748847074256,0.59072563,105260.0,105250.0,1.0155]
[1748847074461,1.38520357,105260.0,105250.0,1.0155]
[1748847076765,1.00348357,105260.0,105250.0,1.0155]
[1748847076973,1.38504357,105260.0,105250.0,1.0155]
[1748847089941,1.40124357,105260.0,105250.0,1.0]
[1748847090144,1.90649376,105260.0,105250.0,1.0]
[1748847090659,1.97226724,105260.0,105250.0,1.0]
[1748847091336,1.17792874,105260.0,105250.0,1.0]
[1748847091930,1.17892874,105260.0,105250.0,1.0]
[1748847092507,1.08641752,105260.0,105250.0,1.0]
[1748847092932,1.10095837,105260.0,105250.0,1.0]
[1748847093896,1.08545837,105260.0,105250.0,1.0]
[1748847095615,1.08551656,105260.0,105250.0,1.0]
[1748847096445,1.10121656,105260.0,105250.0,1.0]
[1748847096831,1.49859497,105260.0,105250.0,1.0]
[1748847097290,1.12974556,105260.0,105250.0,1.0]
[1748847097715,1.62297827,105260.0,105250.0,1.0]
[1748847098118,1.22559986,105260.0,105250.0,1.0]
[1748847099330,5.72537027,105260.0,105250.0,1.0]
[1748847099533,5.32799186,105260.0,105250.0,1.0]
[1748847099913,5.32797312,105260.0,105250.0,1.0]
[1748847101857,5.72535153,105260.0,105250.0,1.0]
[1748847102057,6.15786275,105260.0,105250.0,1.0]
[1748847102263,6.06535153,105260.0,105250.0,1.0]
[1748847102518,6.07031244,105260.0,105250.0,1.0]
[1748847108693,5.27559562,105260.0,105250.0,1.0]
[1748847108902,5.65695403,105260.0,105250.0,1.0]
[1748847111729,6.06747403,105260.0,105250.0,1.0]
[1748847113070,6.0674234,105260.0,105250.0,1.0]
[1748847113280,6.86215628,105260.0,105250.0,1.0]
[1748847116368,6.9546675,105260.0,105250.0,1.0]
[1748847116569,6.86215628,105260.0,105250.0,1.0]
[1748847117383,6.86214922,105260.0,105250.0,1.0]
[1748847120942,6.86215033,105260.0,105250.0,1.0]
[1748847121351,6.46467033,105260.0,105250.0,1.0]
[1748847121561,6.84591033,105260.0,105250.0,1.0156]
[1748847122203,6.92579079,105260.0,105250.0,1.0156]
[1748847122407,6.54455079,105260.0,105250.0,1.0156]
[1748847122777,6.84587033,105260.0,105250.0,1.0156]
[1748847124547,6.84587482,105260.0,105250.0,1.0156]
[1748847126522,6.84587482,105260.0,105250.0,1.0]
[1748847126738,6.86207482,105260.0,105250.0,1.0]
[1748847127043,6.86208171,105260.0,105250.0,1.0]
[1748847127168,6.84588171,105260.0,105250.0,1.0]
[1748847128875,6.84589008,105260.0,105250.0,1.0]
[1748847129030,6.9384013,105260.0,105250.0,1.0]
[1748847129625,6.84589008,105260.0,105250.0,1.0]
[1748847130709,6.86109008,105260.0,105250.0,1.0]
[1748847131114,6.87109008,105260.0,105250.0,1.0]
[1748847131528,8.12960137,105260.0,105250.0,1.0]
[1748847131938,8.06382527,105260.0,105250.0,0.63797642]
[1748847132141,8.06282527,105260.0,105250.0,0.63797642]
[1748847132297,8.15833649,105260.0,105250.0,0.63797642]
[1748847132934,8.22412515,105260.0,105250.0,0.63797642]
[1748847133163,8.2241395,105260.0,105250.0,0.63797642]
[1748847133546,8.2077395,105260.0,105250.0,0.63797642]
[1748847135999,8.2077395,105260.0,105250.0,0.59046519]
[1748847136236,8.2077395,105260.0,105250.0,0.49544273]
[1748847136476,8.2077395,105260.0,105250.0,0.4479315]
[1748847136639,8.2077395,105260.0,105250.0,0.35290904]
[1748847136969,8.2077395,105260.0,105250.0,0.21539781]
[1748847136970,8.15713649,105260.0,105250.0,0.21539781]
[1748847137174,8.14193649,105260.0,105250.0,0.12037535]
[1748847137381,8.14193649,105260.0,105250.0,0.09244535]
[1748847137588,8.14193649,105260.0,105250.0,0.07922535]
[1748847137871,8.04942527,105260.0,105250.0,0.05197535]
[1748847141975,6.92314282,105260.0,105250.0,0.05197535]
[1748847142189,8.10525411,105260.0,105250.0,0.05197535]
[1748847142396,5.85856889,105250.0,105240.0,0.0152]
[1748847142599,6.05896091,105250.0,105240.0,0.0152]
[1748847144317,6.05996091,105250.0,105240.0,0.0152]
[1748847144523,5.66259048,105250.0,105240.0,0.0152]
[1748847144976,5.66259048,105250.0,105230.0,0.0153]
[1748847144977,4.6419357,105240.0,105230.0,0.0308]
[1748847145197,5.43667656,105240.0,105230.0,0.0308]
[1748847145648,5.0231357,105240.0,105230.0,0.0308]
[1748847145878,5.81787656,105240.0,105230.0,0.0308]
[1748847147899,5.90786816,105240.0,105230.0,0.0308]
[1748847148334,5.81787656,105240.0,105230.0,0.0308]
[1748847149846,5.84640956,105240.0,105230.0,0.0308]
[1748847150289,5.84644956,105240.0,105230.0,0.0308]
[1748847152298,5.9122613,105240.0,105230.0,0.0308]
[1748847154610,5.92680215,105240.0,105230.0,0.0308]
[1748847155842,6.01931337,105240.0,105230.0,0.0308]
[1748847157115,5.13206129,105240.0,105230.0,0.0308]
[1748847157307,5.92680215,105240.0,105230.0,0.0308]
[1748847159059,5.9267765,105240.0,105230.0,0.0308]
[1748847163294,5.86099041,105240.0,105230.0,0.0308]
[1748847163585,5.92677203,105240.0,105230.0,0.0308]
[1748847164533,6.01928325,105240.0,105230.0,0.0308]
[1748847165356,5.92677203,105240.0,105230.0,0.0308]
[1748847167745,5.92677326,105240.0,105230.0,0.0308]
[1748847168146,5.92673326,105240.0,105230.0,0.0308]
[1748847172579,5.92674328,105240.0,105230.0,0.0308]
[1748847176611,5.92676997,105240.0,105230.0,0.0308]
[1748847176833,5.98431956,105240.0,105230.0,0.0308]
[1748847177771,5.98431956,105240.0,105230.0,0.0155]
[1748847177772,6.38168999,105240.0,105230.0,0.0155]
[1748847178738,6.00048999,105240.0,105230.0,0.0155]
[1748847178829,0.19956267,105230.0,105220.0,0.0311]
[1748847179004,0.99430353,105230.0,105220.0,0.0311]
[1748847179566,1.02283853,105230.0,105220.0,0.0311]
[1748847179970,1.02283853,105230.0,105220.0,0.0331]
[1748847180175,1.05678724,105230.0,105220.0,0.0331]
[1748847180373,1.02283853,105230.0,105220.0,0.0331]
[1748847181138,0.22809767,105230.0,105220.0,0.0331]
[1748847181471,1.02283853,105230.0,105220.0,0.0331]
[1748847183455,1.08868127,105230.0,105220.0,0.0331]
[1748847183783,1.02283853,105230.0,105220.0,0.0331]
[1748847183991,1.08868668,105230.0,105220.0,0.0331]
[1748847188132,1.11243853,105230.0,105220.0,0.0331]
[1748847188248,1.17830208,105230.0,105220.0,0.0331]
[1748847190648,1.19284293,105230.0,105220.0,0.0331]
[1748847191135,1.19284293,105230.0,105220.0,0.0178]
[1748847191670,1.19284293,105230.0,105220.0,0.0158]
[1748847192590,1.1928452,105230.0,105220.0,0.0158]
[1748847192774,0.29396349,105230.0,105220.0,0.0322]
[1748847193775,0.29396349,105230.0,105220.0,0.25078879]
[1748847193776,0.13718053,105230.0,105220.0,0.25078879]
[1748847193789,0.10864463,105230.0,105220.0,0.36278156]
[1748847193798,1.13891,105250.0,105230.0,0.24986802]
[1748847193806,1.09966068,105250.0,105240.0,0.2308438]
[1748847193816,1.01011283,105250.0,105240.0,0.0313]
[1748847194819,1.39127283,105250.0,105240.0,0.0313]
[1748847194835,1.42080383,105250.0,105240.0,0.0313]
[1748847194837,1.39227283,105250.0,105240.0,0.0313]
[1748847195495,1.39216171,105250.0,105240.0,0.0313]
[1748847196063,1.39212171,105250.0,105240.0,0.0313]
[1748847197875,1.10060171,105250.0,105240.0,0.0313]
[1748847198100,1.39208171,105250.0,105240.0,0.0313]
[1748847202061,1.38005521,105250.0,105240.0,0.0313]
[1748847209326,0.96945521,105250.0,105240.0,0.0313]
[1748847210793,0.96945521,105250.0,105240.0,0.016]
[1748847211260,0.96945521,105250.0,105240.0,0.0321]
[1748847216250,0.96945521,105250.0,105230.0,0.0317]
[1748847216251,0.1995437,105240.0,105230.0,0.0317]
[1748847216823,0.97776301,105240.0,105230.0,0.0317]
[1748847217297,0.99425148,105240.0,105230.0,0.0317]
[1748847217496,1.37521148,105240.0,105230.0,0.0317]
[1748847218828,0.01900371,105240.0,105230.0,0.3938591]
[1748847219031,0.61827875,105240.0,105230.0,0.42236717]
[1748847219186,0.61827875,105240.0,105230.0,0.43186962]
[1748847219187,0.90730149,105240.0,105230.0,0.43186962]
[1748847219360,0.90730149,105240.0,105230.0,0.42236717]
[1748847219566,0.89779968,105240.0,105230.0,0.41949401]
[1748847219771,0.89779968,105240.0,105230.0,0.41286463]
[1748847220770,0.89779968,105240.0,105230.0,0.32711706]
[1748847221021,1.29515357,105240.0,105230.0,0.33661987]
[1748847221202,1.00375357,105240.0,105230.0,0.33661987]
[1748847221439,1.37521167,105240.0,105230.0,0.33661987]
[1748847221925,1.37521167,105240.0,105230.0,0.34612259]
[1748847222101,0.59689778,105240.0,105230.0,0.35275889]
[1748847222260,0.97785778,105240.0,105230.0,0.35275889]
[1748847222460,0.59689778,105240.0,105230.0,0.35275888]
[1748847222683,0.97785778,105240.0,105230.0,0.35275888]
[1748847223049,0.59689778,105240.0,105230.0,0.34612259]
[1748847223264,0.59689778,105240.0,105230.0,0.35275901]
[1748847223693,0.59689778,105240.0,105230.0,0.35275957]
[1748847223876,0.97785778,105240.0,105230.0,0.35275957]
[1748847224072,0.97785778,105240.0,105230.0,0.34612259]
[1748847224303,0.97785778,105240.0,105230.0,0.35275957]
[1748847224691,0.59689778,105240.0,105230.0,0.35275957]
[1748847225125,0.97785778,105240.0,105230.0,0.35275958]
[1748847225261,0.97785778,105240.0,105230.0,0.34325686]
[1748847225461,0.97785778,105240.0,105230.0,0.34325676]
[1748847225667,0.97785778,105240.0,105230.0,0.35275939]
[1748847225879,0.97785778,105240.0,105230.0,0.35275951]
[1748847226299,0.97785778,105240.0,105230.0,0.35275962]
[1748847226492,0.97785778,105240.0,105230.0,0.3461225]
[1748847226760,0.97785778,105240.0,105230.0,0.34325702]
[1748847227788,0.97785778,105240.0,105230.0,0.34325713]
[1748847228607,0.97785778,105240.0,105230.0,0.34325734]
[1748847228748,0.97785778,105240.0,105230.0,0.34325745]
[1748847229253,0.97785778,105240.0,105230.0,0.3432575]
[1748847229428,0.97785778,105240.0,105230.0,0.33661987]
[1748847229659,0.97785778,105240.0,105230.0,0.3432575]
[1748847229888,0.97785778,105240.0,105230.0,0.3432576]
[1748847230105,0.97785778,105240.0,105230.0,0.34325763]
[1748847230540,0.88825778,105240.0,105230.0,0.34325763]
[1748847231232,0.88825778,105240.0,105230.0,0.33661987]
[1748847231696,0.87875569,105240.0,105230.0,0.34325804]
[1748847232609,0.87875569,105240.0,105230.0,0.14369546]
[1748847232619,1.27610958,105240.0,105230.0,0.34325822]
[1748847232629,1.36566958,105240.0,105230.0,0.34325822]
[1748847233563,1.36566958,105240.0,105230.0,0.02213851]
[1748847233571,1.36566958,105240.0,105230.0,0.0155]
[1748847235314,0.19956267,105230.0,105220.0,0.0321]
[1748847235696,0.59691656,105230.0,105220.0,0.13459359]
[1748847236198,0.59691656,105230.0,105220.0,0.13459343]
[1748847236536,0.59691656,105230.0,105220.0,0.13659343]
[1748847237101,0.59691656,105230.0,105220.0,0.1299543]
[1748847237325,0.59691656,105230.0,105220.0,0.13659339]
[1748847237777,0.59691656,105230.0,105220.0,0.1299543]
[1748847237952,0.59691656,105230.0,105220.0,0.13659362]
[1748847238182,0.59691656,105230.0,105220.0,0.1299543]
[1748847238381,0.59691656,105230.0,105220.0,0.13659363]
[1748847238827,0.59691656,105230.0,105220.0,0.13659352]
[1748847239830,0.59691656,105230.0,105220.0,0.13659382]
[1748847240503,0.59691656,105230.0,105220.0,0.1299543]
[1748847240733,0.59691656,105230.0,105220.0,0.13659375]
[1748847241115,0.59691656,105230.0,105220.0,0.13659352]
[1748847241682,0.59691656,105230.0,105220.0,0.13659341]
[1748847241911,0.59691656,105230.0,105220.0,0.12069341]
[1748847242161,0.68942778,105230.0,105220.0,0.02483958]
[1748847242424,0.68942778,105230.0,105220.0,0.0182]
[1748847242657,0.59691656,105230.0,105220.0,0.0182]
[1748847243987,0.59691656,105230.0,105220.0,0.002]
[1748847243988,0.99427045,105230.0,105220.0,0.002]
[1748847244725,1.01007045,105230.0,105220.0,0.002]
[1748847245506,1.02557045,105230.0,105220.0,0.002]
[1748847245511,1.08210843,105230.0,105220.0,0.002]
[1748847246978,1.02657045,105230.0,105220.0,0.002]
[1748847248011,1.01007045,105230.0,105220.0,0.002]
[1748847249356,0.21536267,105230.0,105220.0,0.002]
[1748847249570,1.01007045,105230.0,105220.0,0.002]
[1748847252692,0.97775656,105230.0,105220.0,0.002]
[1748847254492,0.97775656,105230.0,105220.0,0.0185]
[1748847258311,0.97775656,105230.0,105220.0,0.002]
[1748847258484,1.39121045,105230.0,105220.0,0.002]
[1748847261743,0.97775656,105230.0,105220.0,0.0337]
[1748847262547,0.28908267,105230.0,105220.0,0.0337]
[1748847262769,0.58040267,105230.0,105220.0,0.1295543]
[1748847262972,0.97775656,105230.0,105220.0,0.1295543]
[1748847265374,0.97778752,105230.0,105220.0,0.1295543]
[1748847266191,0.59694752,105230.0,105220.0,0.1295543]
[1748847266402,0.97774752,105230.0,105220.0,0.1295543]
[1748847275646,1.03224565,105230.0,105220.0,0.018]
[1748847276283,1.04754565,105230.0,105220.0,0.002]
[1748847276290,1.4602305,105230.0,105220.0,0.002]
[1748847276304,1.06284565,105230.0,105220.0,0.002]
[1748847277402,0.19958164,105220.0,105210.0,0.0157]
[1748847277405,0.59696649,105220.0,105210.0,0.0157]
[1748847286005,0.59696649,105220.0,105210.0,0.0318]
[1748847288240,0.88820649,105220.0,105210.0,0.0318]
[1748847296968,0.97768649,105220.0,105210.0,0.0318]
[1748847300071,0.99290194,105220.0,105210.0,0.0157]
[1748847300562,0.97768649,105220.0,105210.0,0.0157]
[1748847305279,1.375401,105220.0,105210.0,0.0157]
[1748847317030,1.375281,105220.0,105210.0,0.0309]
[1748847320155,0.58018164,105220.0,105210.0,0.0309]
[1748847320292,1.375281,105220.0,105210.0,0.0309]
[1748847329493,0.994681,105220.0,105210.0,0.0309]
[1748847329690,1.375161,105220.0,105210.0,0.0309]
[1748847330366,0.994681,105220.0,105210.0,0.0309]
[1748847330552,1.375161,105220.0,105210.0,0.0309]
[1748847331354,0.994681,105220.0,105210.0,0.0309]
[1748847331771,1.375121,105220.0,105210.0,0.0309]
[1748847332588,1.375121,105220.0,105200.0,0.11926194]
[1748847332589,0.19960078,105210.0,105200.0,0.11926194]
[1748847333005,0.99470014,105210.0,105200.0,0.1259059]
[1748847333010,0.99470014,105210.0,105200.0,0.11926194]
[1748847333783,0.99470014,105210.0,105200.0,0.11935421]
[1748847334533,0.99470014,105210.0,105200.0,0.12135421]
[1748847337642,1.00489129,105210.0,105200.0,0.12135421]
[1748847338231,5.55097382,105210.0,105200.0,0.10209227]
[1748847338604,5.15838688,105210.0,105200.0,0.10209227]
[1748847338610,4.45768404,105210.0,105200.0,0.10209227]
[1748847338920,5.2527834,105210.0,105200.0,0.10209227]
[1748847338924,5.6331434,105210.0,105200.0,0.10009227]
[1748847339500,5.6167434,105210.0,105200.0,0.10009227]
[1748847339502,5.55089088,105210.0,105200.0,0.10009227]
[1748847340557,0.59511467,105210.0,105200.0,0.11539227]
[1748847340566,0.59511467,105210.0,105200.0,0.13049227]
[1748847340567,0.60734161,105210.0,105200.0,0.13049227]
[1748847340576,0.98770161,105210.0,105200.0,0.13049227]
[1748847341616,1.47776251,105210.0,105200.0,0.10009227]
[1748847341621,1.41932446,105210.0,105200.0,0.10009227]
[1748847342532,1.12828446,105210.0,105200.0,0.10009227]
[1748847342537,1.41932446,105210.0,105200.0,0.10009227]
[1748847344940,1.75932446,105210.0,105200.0,0.10009227]
[1748847345632,5.89125731,105210.0,105200.0,0.10009227]
[1748847346772,5.91980131,105210.0,105200.0,0.10009227]
[1748847349321,5.12470195,105210.0,105200.0,0.10009227]
[1748847349499,5.91980131,105210.0,105200.0,0.10009227]
[1748847349681,5.90480131,105210.0,105200.0,0.10009227]
[1748847351142,5.95580098,105210.0,105200.0,0.10009227]
[1748847355509,5.90480131,105210.0,105200.0,0.10009227]
[1748847355731,5.92486404,105210.0,105200.0,0.10009227]
[1748847356322,5.90976404,105210.0,105200.0,0.10009227]
[1748847359479,5.92496404,105210.0,105200.0,0.10009227]
[1748847361673,5.90976404,105210.0,105200.0,0.10009227]
[1748847362303,5.98632733,105210.0,105200.0,0.10009227]
[1748847362600,5.98632733,105210.0,105200.0,0.06439227]
[1748847362772,5.90976404,105210.0,105200.0,0.0357]
[1748847362919,0.19961958,105200.0,105190.0,0.016]
[1748847363132,0.99471894,105200.0,105190.0,0.016]
[1748847363343,0.99471894,105200.0,105190.0,0.0312]
[1748847364025,0.99471894,105200.0,105190.0,0.0332]
[1748847368110,1.00881448,105200.0,105190.0,0.0332]
[1748847369999,1.00881448,105200.0,105190.0,0.018]
[1748847372357,0.99471894,105200.0,105190.0,0.018]
[1748847372913,1.28571894,105200.0,105190.0,0.018]
[1748847373294,6.15580147,105200.0,105190.0,0.002]
[1748847373302,6.15580147,105200.0,105180.0,0.0147998]
[1748847373303,0.22474489,105190.0,105180.0,0.0147998]
[1748847373719,1.2195194,105190.0,105180.0,0.0147998]
[1748847373725,0.20920437,105160.0,105150.0,0.07624494]
[1748847374197,1.00430373,105160.0,105150.0,0.18761164]
[1748847374202,1.00430373,105160.0,105150.0,0.18809731]
[1748847374608,1.00430373,105160.0,105150.0,0.18809738]
[1748847375376,1.00430373,105160.0,105150.0,0.00934296]
[1748847375770,1.00430373,105160.0,105150.0,0.01598638]
[1748847375969,1.00430373,105160.0,105150.0,0.00934314]
[1748847376186,1.01420649,105160.0,105150.0,0.04708638]
[1748847376545,1.01420649,105160.0,105150.0,0.04908638]
[1748847376743,1.01420649,105160.0,105150.0,0.04908326]
[1748847377291,1.01420649,105160.0,105150.0,0.04908306]
[1748847377620,0.61665681,105160.0,105150.0,0.04907803]
[1748847377981,0.61665681,105160.0,105150.0,0.04907521]
[1748847378223,0.61665681,105160.0,105150.0,0.03358549]
[1748847378425,0.61665681,105160.0,105150.0,0.04907246]
[1748847378954,0.61665681,105160.0,105150.0,0.05858289]
[1748847379356,0.61665681,105160.0,105150.0,0.04973298]
[1748847379586,0.61665681,105160.0,105150.0,0.05858267]
[1748847380086,0.61665681,105160.0,105150.0,0.04309571]
[1748847380216,0.61665681,105160.0,105150.0,0.05857817]
[1748847380650,0.00990276,105160.0,105150.0,0.37554391]
[1748847380971,0.01901745,105160.0,105150.0,0.37316506]
[1748847381189,0.01901745,105160.0,105150.0,0.36431839]
[1748847381378,0.01901745,105160.0,105150.0,0.37316419]
[1748847381536,0.02852649,105160.0,105150.0,0.37316419]
[1748847382071,0.0285264,105160.0,105150.0,0.37316419]
[1748847382266,0.0285264,105160.0,105150.0,0.37316198]
[1748847382470,0.0285264,105160.0,105150.0,0.36652858]
[1748847382661,0.0285264,105160.0,105150.0,0.37316133]
[1748847383251,0.0285264,105160.0,105150.0,0.36652821]
[1748847383605,0.01901745,105160.0,105150.0,0.37316075]
[1748847384003,0.01901745,105160.0,105150.0,0.37315912]
[1748847384311,0.02928937,105160.0,105150.0,0.37315884]
[1748847384540,0.02928928,105160.0,105150.0,0.37315884]
[1748847384859,0.02928928,105160.0,105150.0,0.37315896]
[1748847385079,0.03879823,105160.0,105150.0,0.37315918]
[1748847385773,1.01457574,105160.0,105150.0,0.12941492]
[1748847385921,1.01457574,105160.0,105150.0,0.03643997]
[1748847386158,1.00506679,105160.0,105150.0,0.03644003]
[1748847386377,0.99555766,105160.0,105150.0,0.03644003]
[1748847386644,0.59800798,105160.0,105150.0,0.03644003]
[1748847386835,0.59800798,105160.0,105150.0,0.02759571]
[1748847387039,0.59800798,105160.0,105150.0,0.23615405]
[1748847387164,0.2004583,105160.0,105150.0,0.2437103]
[1748847387682,0.2004583,105160.0,105150.0,0.25255397]
[1748847388659,0.2004583,105160.0,105150.0,0.2525531]
[1748847389135,0.2004583,105160.0,105150.0,0.05283851]
[1748847390237,0.97865623,105160.0,105150.0,0.01808549]
[1748847390245,0.99395623,105160.0,105150.0,0.01808549]
[1748847391182,0.70295623,105160.0,105150.0,0.01808549]
[1748847391197,0.68765623,105160.0,105150.0,0.01808549]
[1748847397839,0.68765623,105160.0,105150.0,0.01808549]
[1748847399106,0.70385623,105160.0,105150.0,0.01808549]
[1748847400124,0.68765623,105160.0,105150.0,0.01808549]
[1748847401182,0.97865623,105160.0,105150.0,0.01808549]
[1748847401389,0.97965623,105160.0,105150.0,0.02708549]
[1748847403389,0.99545623,105160.0,105150.0,0.03594547]
[1748847403590,1.48584538,105160.0,105150.0,0.02034547]
[1748847403790,1.39333416,105160.0,105150.0,0.01148549]
[1748847404197,0.99545623,105160.0,105150.0,0.01148549]
[1748847404619,0.99445623,105160.0,105150.0,0.00048549]
[1748847404970,0.99445623,105160.0,105150.0,0.00848549]
[1748847404971,0.99545623,105160.0,105150.0,0.00848549]
[1748847409313,1.39357778,105160.0,105150.0,0.00848549]
[1748847410872,0.3065783,105160.0,105150.0,0.00848549]
[1748847411072,1.39353778,105160.0,105150.0,0.00848549]
[1748847411466,1.39353778,105160.0,105150.0,0.02478549]
[1748847412198,1.39349778,105160.0,105150.0,0.02478549]
[1748847412915,1.37769778,105160.0,105150.0,0.02478549]
[1748847413275,0.9796489,105160.0,105150.0,0.02478549]
[1748847414295,0.9947489,105160.0,105150.0,0.02478549]
[1748847419259,0.5967983,105160.0,105150.0,0.02478549]
[1748847419473,0.9947489,105160.0,105150.0,0.02478549]
[1748847420552,0.6145089,105160.0,105150.0,0.02478549]
[1748847420750,0.9947489,105160.0,105150.0,0.02478549]
[1748847424005,0.11956946,105160.0,105150.0,0.36423931]
[1748847424178,0.13858727,105160.0,105150.0,0.37088666]
[1748847424317,0.13858727,105160.0,105150.0,0.37022984]
[1748847424521,0.14809658,105160.0,105150.0,0.37973961]
[1748847424727,0.13858727,105160.0,105150.0,0.37973941]
[1748847424928,0.13858727,105160.0,105150.0,0.389249]
[1748847425131,0.13858727,105160.0,105150.0,0.38924883]
[1748847425354,0.13858727,105160.0,105150.0,0.38924723]
[1748847425527,0.13858727,105160.0,105150.0,0.3892451]
[1748847425778,0.13858727,105160.0,105150.0,0.38924511]
[1748847426551,0.14809649,105160.0,105150.0,0.38924511]
[1748847426748,0.14809649,105160.0,105150.0,0.38038726]
[1748847426976,0.14809649,105160.0,105150.0,0.38924339]
[1748847427223,0.14809649,105160.0,105150.0,0.3826]
[1748847427528,0.05881649,105160.0,105150.0,0.3892412]
[1748847428012,0.05881649,105160.0,105150.0,0.38924]
[1748847428351,0.05881649,105160.0,105150.0,0.3892398]
[1748847428559,0.05881649,105160.0,105150.0,0.38259759]
[1748847428979,0.05881649,105160.0,105150.0,0.38923788]